bitfinex-derivatives/quotes_ETHF0:USTF0_20250709
["timestamp","ask_amount","ask_price","bid_price","bid_amount"]
[1752091505621,0.7248,2758.7,2758.2,0.6283]
[1752091505622,0.72488,2758.4,2758.2,1.35321]
[1752091505925,0.72487,2758.5,2758.4,0.00543065]
[1752091506314,8.93267,2758.5,2758.4,0.00543065]
[1752091506821,12.83977,2758.5,2758.4,0.00543065]
[1752091507222,12.1149,2758.5,2757.1,3.2078]
[1752091507518,3.2078,2757.8,2757.1,3.2078]
[1752091507718,3.9071,2757.7,2757.2,0.72518]
[1752091507919,3.9071,2757.7,2757.2,0.72517]
[1752091508118,0.9668,2757.6,2757.1,3.933]
[1752091508422,2.58275787,2757.5,2756.5,3.2078]
[1752091508620,3.2078,2757.0,2756.7,0.7253]
[1752091508819,3.2078,2757.0,2756.5,3.2078]
[1752091508820,3.2078,2756.9,2756.5,3.2078]
[1752091509317,0.0054407,2757.1,2756.3,3.2078]
[1752091509622,3.2132407,2757.1,2756.3,3.2078]
[1752091509822,3.2132407,2757.1,2756.6,3.2078]
[1752091510018,0.72533,2756.7,2756.3,3.2078]
[1752091510224,0.9722407,2757.1,2756.5,3.2078]
[1752091510421,0.0054407,2757.1,2756.6,4.1138]
[1752091510725,0.9668,2757.0,2756.6,4.1138]
[1752091510920,4.1746,2756.9,2755.7,3.2078]
[1752091511120,3.2078,2756.3,2755.4,7.3216]
[1752091511423,37.6464,2756.2,2755.4,7.3216]
[1752091511626,37.6464,2756.2,2755.2,0.91129795]
[1752091511627,0.72563,2755.6,2755.2,0.18559795]
[1752091511926,3.2078,2755.7,2755.2,0.18559795]
[1752091512128,0.9668,2755.6,2755.2,0.18559795]
[1752091512426,0.72562,2755.6,2755.2,0.91131795]
[1752091512623,0.0054407,2755.7,2755.6,0.72561]
[1752091513421,3.2078,2756.5,2755.6,8.2078]
[1752091513622,3.2078,2756.5,2756.4,0.7254]
[1752091513822,52.245,2756.9,2756.2,3.2078]
[1752091514028,3.2078,2757.1,2756.8,0.72527]
[1752091514221,4.1746,2757.5,2757.0,0.72523]
[1752091514421,1.36626852,2757.4,2757.1,3.8982]
[1752091514632,1.36626852,2757.3,2757.1,3.8982]
[1752091514926,1.36626852,2757.2,2757.1,9.62341]
[1752091515230,6.4473246,2758.0,2757.1,7.106]
[1752091515231,0.7251,2757.6,2757.1,7.106]
[1752091515426,1.3653744,2757.5,2757.4,0.72513]
[1752091515730,1.3653744,2757.5,2757.4,3.93293]
[1752091515929,1.3653744,2757.5,2757.4,8.93293]
[1752091516134,3.2395246,2758.3,2758.2,0.72493]
[1752091516321,3.21701112,2758.3,2757.9,3.2078]
[1752091516526,3.21701112,2758.4,2758.3,0.7249]
[1752091516726,3.21701112,2758.5,2758.4,0.72487]
[1752091516928,3.21701112,2758.5,2758.3,0.72488]
[1752091517124,3.21701112,2758.6,2758.4,4.62307]
[1752091517329,3.94182112,2758.7,2758.4,4.62307]
[1752091517525,3.21701112,2758.7,2758.4,3.8982]
[1752091518130,0.72484,2758.6,2758.4,3.8982]
[1752091518927,0.9668,2758.5,2758.0,0.72497]
[1752091519123,0.72484,2758.6,2757.9,3.2078]
[1752091519332,3.2078,2758.9,2758.5,0.72485]
[1752091519636,0.7249,2758.3,2758.0,3.2078]
[1752091519830,0.72493,2758.2,2758.1,4.0938]
[1752091520032,0.72498,2758.0,2757.8,0.72502]
[1752091520228,1.81233,2758.2,2757.4,4.81892]
[1752091520427,3.2078,2757.7,2756.8,3.2078]
[1752091520627,0.72499,2758.0,2757.3,5.02071]
[1752091520829,0.9668,2759.1,2757.9,3.2078]
[1752091521131,0.04544398,2758.5,2758.4,0.72487]
[1752091521337,0.04544398,2758.5,2758.0,3.8277]
[1752091521634,0.04544398,2758.5,2758.4,0.72487]
[1752091522032,0.04544398,2758.5,2758.3,3.8277]
[1752091522238,0.72487,2758.4,2758.3,3.8277]
[1752091522537,1.01224398,2758.5,2758.3,3.8277]
[1752091522833,0.04544398,2758.5,2758.4,0.72487]
[1752091523434,0.04544398,2758.5,2758.4,5.72487]
[1752091523639,3.93252,2759.0,2758.9,0.72474]
[1752091523840,1.69152,2759.0,2758.8,0.72475]
[1752091524131,0.9668,2758.9,2758.5,3.2078]
[1752091524332,0.72486,2758.5,2758.3,4.55258]
[1752091524532,0.7249,2758.3,2758.2,0.0054407]
[1752091525439,0.9668,2758.9,2758.5,0.72483]
[1752091525629,0.9668,2758.8,2758.2,0.0054407]
[1752091525832,0.7249,2758.3,2758.2,0.0054407]
[1752091526036,1.6917,2758.3,2758.2,0.0054407]
[1752091526534,1.81194,2758.8,2758.2,0.0054407]
[1752091526535,0.9668,2758.8,2758.2,0.0054407]
[1752091526841,1.81225,2758.4,2757.3,0.72516]
[1752091527139,0.72505,2757.8,2757.5,3.2078]
[1752091527339,3.9091,2758.3,2757.5,3.2078]
[1752091527536,0.72501,2757.9,2757.8,0.72502]
[1752091527738,5.02005,2758.4,2758.2,0.72491]
[1752091527739,0.72489,2758.4,2758.2,0.72491]
[1752091527936,4.1800407,2758.8,2758.1,3.2078]
[1752091528241,0.9722407,2758.8,2758.7,0.7248]
[1752091530239,1.6970107,2758.8,2758.7,0.7248]
[1752091530739,1.6970207,2758.8,2758.7,0.7248]
[1752091531232,0.0054407,2758.8,2758.7,0.7248]
[1752091531738,0.7302107,2758.8,2758.5,7.0997]
[1752091532040,0.7248,2758.7,2758.6,0.7248]
[1752091532243,0.9668,2758.7,2758.3,0.72488]
[1752091532433,0.72488,2758.4,2758.3,0.72488]
[1752091532638,0.9668,2758.6,2757.9,8.95119]
[1752091532941,3.2078,2758.3,2757.6,3.2078]
[1752091533134,0.72524,2757.0,2756.9,3.2078]
[1752091533337,0.9668,2757.0,2756.7,4.0252]
[1752091533633,0.72534,2756.7,2756.1,5.02151]
[1752091533835,0.9668,2756.9,2756.6,0.72533]
[1752091534041,0.0054407,2757.1,2756.5,1.81344]
[1752091534337,0.0054407,2757.1,2757.0,0.72524]
[1752091534932,0.9722407,2757.1,2756.7,3.2078]
[1752091535135,0.9722407,2757.1,2756.4,3.2078]
[1752091535441,0.7306807,2757.1,2756.9,0.72526]
[1752091535637,0.7306807,2757.1,2757.0,4.0772]
[1752091536042,0.0054407,2757.1,2757.0,4.80244]
[1752091537341,0.0054407,2757.1,2757.0,8.01024]
[1752091537646,0.0054407,2757.1,2756.8,3.2078]
[1752091537845,0.72527,2756.9,2756.8,4.1945]
[1752091538046,0.72535,2756.6,2756.5,3.2078]
[1752091538338,0.72543,2756.3,2756.2,4.1945]
[1752091538540,0.72548,2756.1,2756.0,3.2078]
[1752091538840,0.72548,2756.1,2755.2,59.60391664]
[1752091538841,0.72552,2756.0,2755.9,3.2078]
[1752091539043,0.72552,2756.0,2755.9,4.1588]
[1752091539242,0.72555,2755.9,2755.7,0.72557]
[1752091539434,3.2078,2756.3,2756.2,0.72545]
[1752091539636,3.2078,2756.3,2755.7,4.1588]
[1752091540037,3.2078,2756.5,2755.9,5.02164]
[1752091540237,5.1137,2756.9,2756.0,4.1588]
[1752091540238,8.3215,2756.9,2756.0,4.1588]
[1752091540443,3.2078,2756.6,2756.0,4.1588]
[1752091540748,0.72548,2756.1,2756.0,4.8843]
[1752091540942,0.72548,2756.1,2756.0,4.1588]
[1752091541148,0.72547,2756.2,2756.0,4.88429]
[1752091541345,0.72546,2756.2,2756.1,0.72548]
[1752091541647,0.9385,2756.9,2756.1,3.2078]
[1752091541842,3.2078,2757.0,2756.1,3.2078]
[1752091542042,0.9439407,2757.1,2756.4,3.2078]
[1752091542242,0.72533,2756.7,2756.5,4.448]
[1752091542543,0.0054407,2757.1,2756.5,4.448]
[1752091543044,0.72528,2756.9,2756.7,0.7253]
[1752091543348,0.72528,2756.9,2756.7,0.72531]
[1752091543642,0.0054407,2757.1,2757.0,0.72524]
[1752091544342,0.9385,2757.8,2757.0,5.72524]
[1752091544547,3.2078,2758.0,2757.3,0.72515]
[1752091544746,1.31493206,2757.9,2757.4,5.17313]
[1752091545045,0.72511,2757.5,2757.4,5.17314]
[1752091545236,2.04004206,2757.5,2757.4,5.17314]
[1752091545642,1.31493206,2757.5,2757.4,5.17314]
[1752091545842,2.04015838,2757.7,2757.5,0.7251]
[1752091546042,1.31509838,2757.6,2757.5,0.7251]
[1752091546243,0.72506,2757.7,2757.5,0.7251]
[1752091546638,3.2078,2758.0,2757.2,1.81298]
[1752091546849,3.21701112,2758.6,2757.0,3.2078]
[1752091546850,0.72503,2757.9,2757.3,5.02072]
[1752091547046,0.72497,2758.1,2757.9,0.725]
[1752091547242,3.2078,2758.3,2758.1,0.72495]
[1752091547442,3.2078,2758.3,2758.2,0.72493]
[1752091547644,3.2078,2758.3,2757.8,1.81255]
[1752091547645,0.72486,2758.5,2757.9,1.81248]
[1752091547938,3.93264,2758.6,2758.4,0.72486]
[1752091548441,3.2078,2758.6,2758.5,0.72485]
[1752091548746,4.52280004,2758.6,2758.5,0.72485]
[1752091548947,4.52280004,2758.6,2757.9,1.81248]
[1752091549148,4.52280004,2758.6,2758.1,0.72493]
[1752091549149,0.72491,2758.3,2758.1,0.72493]
[1752091549352,3.2078,2758.6,2758.3,0.72489]
[1752091549543,3.93264,2758.6,2758.4,0.72487]
[1752091549847,3.2078,2758.6,2758.0,1.81246]
[1752091550250,3.2078,2758.6,2758.5,0.72485]
[1752091550447,3.2078,2758.6,2758.1,1.8128]
[1752091550949,3.93263,2758.6,2758.4,0.72486]
[1752091551254,0.72485,2758.5,2758.3,0.72489]
[1752091551445,0.72487,2758.4,2758.3,0.72489]
[1752091551747,3.2078,2758.6,2758.1,1.8128]
[1752091551944,0.72489,2758.4,2758.3,0.7249]
[1752091552149,0.72486,2758.5,2758.1,1.8128]
[1752091552349,0.72489,2758.4,2758.2,0.72491]
[1752091552549,4.1463,2758.6,2758.3,0.7249]
[1752091552745,0.72489,2758.4,2758.3,0.7249]
[1752091552945,3.2078,2758.6,2758.1,1.8128]
[1752091553140,0.72485,2758.5,2758.4,0.72486]
[1752091553342,0.72485,2758.5,2758.1,1.8128]
[1752091553343,3.2078,2758.6,2758.2,0.72493]
[1752091553543,0.72493,2758.2,2758.1,1.8128]
[1752091554348,0.9385,2758.5,2758.1,1.8128]
[1752091554553,0.72493,2758.2,2758.1,1.8128]
[1752091554746,1.81248,2758.0,2756.8,3.16433126]
[1752091555050,3.93299,2757.2,2757.1,0.7252]
[1752091555351,3.2078,2757.7,2756.6,3.2078]
[1752091555554,3.2078,2757.3,2756.4,3.16433126]
[1752091555855,3.2078,2757.3,2756.5,0.72535]
[1752091555856,0.72533,2756.7,2756.5,0.72535]
[1752091556055,3.2078,2757.0,2756.1,0.0012]
[1752091556255,0.72542,2756.4,2756.1,0.0012]
[1752091556453,3.2078,2756.7,2756.3,0.0054407]
[1752091556951,3.2078,2756.9,2756.3,0.0054407]
[1752091557155,4.74638743,2756.4,2756.3,0.0054407]
[1752091557352,3.2078,2756.6,2756.3,0.0054407]
[1752091557745,3.2078,2756.6,2756.5,0.72537]
[1752091557947,55.4448,2756.9,2756.3,0.0054407]
[1752091558154,3.2078,2756.9,2756.3,0.0054407]
[1752091558348,0.72531,2756.8,2756.5,0.72537]
[1752091558551,3.2078,2756.9,2756.4,0.3476]
[1752091558757,0.72537,2756.5,2756.4,0.3476]
[1752091559551,0.7254,2756.4,2756.3,0.0054407]
[1752091559754,4.756,2756.4,2756.3,0.0054407]
[1752091559956,41.923,2756.4,2756.3,0.0054407]
[1752091560162,42.8615,2756.4,2756.3,7e-07]
[1752091560564,0.72545,2756.2,2756.1,7e-07]
[1752091560761,8.89273743,2756.2,2756.1,7e-07]
[1752091560966,0.72569,2755.3,2755.2,7.95e-06]
[1752091561161,0.72569,2755.3,2754.0,4.23969607]
[1752091561162,0.72598,2754.2,2754.1,4.15]
[1752091561366,3.2078,2754.3,2754.1,4.15]
[1752091561661,3.2078,2754.3,2753.4,3.2078]
[1752091561863,4.02098743,2754.1,2753.3,4.15]
[1752091562058,3.2078,2754.1,2753.1,7.44749607]
[1752091562264,3.2078,2754.1,2752.7,11.09377087]
[1752091562265,1.81528,2753.7,2752.7,3.2078]
[1752091562460,3.2078,2753.5,2752.8,4.15]
[1752091562660,4.7176407,2754.5,2753.4,3.2078]
[1752091562661,3.2078,2754.1,2753.4,3.2078]
[1752091562856,0.72603,2754.1,2753.5,4.15]
[1752091563057,0.0054407,2754.5,2753.6,1.8153]
[1752091563263,0.0054407,2754.5,2753.5,4.15]
[1752091563264,0.0054407,2754.5,2754.0,0.72602]
[1752091563563,0.0054407,2754.5,2754.1,4.2193]
[1752091563865,0.72606,2753.9,2753.6,0.72614]
[1752091564161,3.2078,2754.4,2753.7,3.2078]
[1752091564365,0.0054407,2754.5,2753.8,4.2193]
[1752091564562,0.72599,2754.2,2753.8,4.2193]
[1752091564763,0.0054407,2754.5,2753.8,4.2193]
[1752091564961,0.0054407,2754.5,2754.4,0.72593]
[1752091565158,3.2078,2755.4,2755.2,0.7257]
[1752091565357,1.33732945,2755.3,2754.5,4.2193]
[1752091565557,0.72572,2755.2,2754.5,4.2193]
[1752091565765,0.72577,2755.0,2754.5,4.2193]
[1752091565966,3.2078,2755.1,2754.5,4.2193]
[1752091566161,1.81413,2755.5,2754.8,0.72581]
[1752091566162,3.2078,2755.5,2754.8,0.72581]
[1752091566463,3.2078,2755.5,2754.6,0.9492]
[1752091566464,3.2078,2755.2,2754.6,1.67506]
[1752091566672,3.2078,2755.2,2754.6,0.9492]
[1752091566673,1.336018,2755.1,2754.6,0.9492]
[1752091566874,0.72585,2754.7,2754.6,0.9492]
[1752091567170,0.726,2754.1,2754.0,7.5636]
[1752091567368,3.2078,2754.3,2754.0,4.3558]
[1752091567563,3.2078,2754.6,2754.0,4.3558]
[1752091567766,0.72598,2754.3,2754.0,4.3558]
[1752091567964,3.2078,2754.6,2754.0,4.3558]
[1752091568165,0.7259,2754.5,2754.1,0.72598]
[1752091568367,0.7259,2754.5,2754.2,5.08177]
[1752091568569,3.2078,2754.8,2753.9,0.0054407]
[1752091568763,0.72587,2754.7,2754.4,0.72591]
[1752091568971,3.21701112,2756.2,2754.4,0.72591]
[1752091568972,3.2078,2755.5,2755.2,0.7257]
[1752091569268,3.2078,2755.5,2754.5,4.3558]
[1752091569467,3.2078,2755.8,2754.8,1.81455]
[1752091569663,3.2078,2755.8,2755.6,0.7256]
[1752091569869,3.2078,2755.8,2754.9,7.9409]
[1752091570069,3.93338,2755.8,2755.5,0.72562]
[1752091570263,3.93338,2755.8,2755.0,1.81443]
[1752091570264,0.72553,2756.0,2755.7,0.72557]
[1752091570463,3.2078,2756.1,2755.4,1.81416]
[1752091570668,3.2078,2756.1,2755.5,1.8141]
[1752091570872,3.2078,2756.1,2755.6,4.097]
[1752091571076,3.2078,2756.1,2755.8,0.72555]
[1752091571269,0.72558,2755.7,2755.6,4.097]
[1752091571470,3.2078,2756.1,2755.0,3.2078]
[1752091571471,3.2078,2756.1,2756.0,0.7255]
[1752091571669,3.2078,2756.1,2755.4,4.097]
[1752091571873,3.2078,2756.1,2755.1,3.2078]
[1752091572070,3.2078,2756.1,2755.8,0.72555]
[1752091572266,0.72558,2755.7,2755.2,5.033]
[1752091572474,0.72566,2755.4,2755.3,4.3574]
[1752091572778,0.72577,2755.0,2754.9,3.8439]
[1752091573076,0.72577,2755.0,2754.2,1.81493]
[1752091573077,0.72582,2754.9,2754.4,3.2078]
[1752091573276,1.81443,2755.1,2754.4,4.1438]
[1752091573465,3.2078,2755.2,2754.5,4.3574]
[1752091573671,0.72593,2754.4,2754.3,0.00249508]
[1752091574272,0.72591,2754.5,2754.3,0.00249508]
[1752091574476,3.2078,2754.6,2754.3,0.00249508]
[1752091574673,3.2078,2755.0,2754.4,0.936]
[1752091574874,0.72591,2754.5,2754.3,0.00249508]
[1752091575181,0.72593,2754.4,2754.3,4.35989508]
[1752091575379,0.72592,2754.5,2754.3,4.35989508]
[1752091575567,3.2078,2754.8,2754.7,0.72585]
[1752091575768,5.02218,2755.1,2754.3,4.35989508]
[1752091575969,3.2078,2754.8,2754.3,4.35989508]
[1752091576175,0.72592,2754.5,2754.3,5.08584508]
[1752091576581,0.72593,2754.4,2754.3,4.35989508]
[1752091577182,3.93369,2754.6,2754.4,0.72592]
[1752091577374,0.72593,2754.4,2754.3,0.00249508]
[1752091577572,1.81438,2755.1,2754.3,0.00249508]
[1752091577573,3.2078,2754.5,2754.4,0.72593]
[1752091577777,0.72589,2754.6,2754.4,5.00913]
[1752091577975,3.2078,2755.0,2754.4,4.2832]
[1752091578182,3.2078,2755.0,2754.8,0.72581]
[1752091578477,3.2078,2755.0,2754.4,0.936]
[1752091578677,3.2078,2755.0,2754.9,0.72579]
[1752091578873,3.2078,2755.0,2754.6,0.0054407]
[1752091579274,0.72585,2754.7,2754.6,0.0054407]
[1752091579472,3.93365,2754.7,2754.6,0.0054407]
[1752091580081,3.2078,2754.7,2754.6,0.7313107]
[1752091580282,3.93365,2754.7,2754.6,0.0054407]
[1752091580880,3.93365,2754.7,2754.6,0.7313107]
[1752091581086,3.93365,2754.7,2754.6,0.0054407]
[1752091581287,3.2078,2754.7,2754.6,0.7313107]
[1752091581487,3.93365,2754.7,2754.6,0.0054407]
[1752091585079,0.72585,2754.7,2754.6,0.0054407]
[1752091585285,0.72593,2754.4,2754.3,0.00249508]
[1752091585484,6.81964823,2754.4,2754.3,0.00249508]
[1752091585791,0.72608,2753.8,2753.7,4.2023]
[1752091587186,0.72607,2753.9,2753.8,0.72606]
[1752091587397,0.72614,2753.6,2753.5,3.6577]
[1752091587590,0.72614,2753.6,2753.5,4.17470668]
[1752091587783,6.09371823,2754.0,2753.5,8.50000668]
[1752091587983,4.1423,2754.0,2753.0,3.2078]
[1752091588182,0.72627,2753.2,2752.8,4.3253]
[1752091588388,0.72625,2753.2,2753.0,0.72628]
[1752091588588,0.72625,2753.2,2753.1,4.3253]
[1752091588788,3.2078,2753.6,2753.1,4.3253]
[1752091589093,1.81555,2753.3,2752.7,0.72636]
[1752091589394,0.0054407,2753.4,2752.6,3.2078]
[1752091589594,0.0054407,2753.4,2753.3,0.72622]
[1752091589784,3.2078,2753.9,2753.8,0.72608]
[1752091589996,1.36148707,2753.9,2753.8,0.72607]
[1752091590291,1.36148707,2753.9,2753.8,5.72607]
[1752091590490,3.21701112,2754.5,2754.4,0.72593]
[1752091590793,3.21701112,2754.6,2754.5,0.7259]
[1752091590992,3.21701112,2754.7,2754.6,0.72587]
[1752091591490,0.9345,2755.0,2754.9,0.72579]
[1752091591692,5.51215,2756.1,2755.1,0.72574]
[1752091591693,4.33169916,2755.2,2755.1,0.72574]
[1752091591892,5.36136206,2755.5,2755.0,1.81443]
[1752091591893,4.33169916,2755.4,2755.0,1.81443]
[1752091592088,4.33169916,2755.5,2755.4,0.72566]
[1752091592288,4.33169916,2755.6,2754.8,1.81456]
[1752091592497,3.2078,2755.4,2755.1,0.72574]
[1752091592689,0.72572,2755.3,2755.1,0.72574]
[1752091592889,3.2078,2755.4,2755.3,0.72569]
[1752091593289,3.2078,2755.7,2755.6,0.72558]
[1752091593593,3.2078,2755.7,2754.9,1.81443]
[1752091593594,3.2078,2755.7,2755.0,1.81443]
[1752091593893,0.72553,2755.9,2755.7,0.72558]
[1752091594195,3.93332,2756.0,2755.7,0.72557]
[1752091594390,3.2078,2756.0,2755.9,0.72553]
[1752091594993,3.2078,2756.3,2756.1,0.72547]
[1752091595183,3.2078,2756.6,2755.7,3.2078]
[1752091595384,3.2078,2756.6,2756.5,0.72537]
[1752091595788,4.33169916,2757.1,2757.0,0.72524]
[1752091595989,4.33169916,2757.1,2756.3,3.2078]
[1752091596188,0.72523,2757.1,2756.8,0.72528]
[1752091596389,7.53949916,2757.2,2756.8,0.72528]
[1752091596592,3.2078,2756.9,2756.4,0.72537]
[1752091596791,3.2078,2756.9,2756.3,3.2078]
[1752091596989,0.72533,2756.7,2756.5,0.72537]
[1752091597191,3.2078,2756.9,2756.3,3.2078]
[1752091597494,3.2078,2756.9,2756.8,0.72529]
[1752091597687,3.2078,2756.9,2756.3,5.02135]
[1752091597688,4.32330442,2756.9,2756.4,1.81345]
[1752091597991,3.2078,2757.2,2756.3,3.2078]
[1752091598196,0.72529,2756.8,2756.3,3.2078]
[1752091598584,3.2078,2756.9,2756.3,4.1303]
[1752091598790,3.2078,2756.9,2756.8,0.72529]
[1752091598990,3.93308,2756.9,2756.7,0.7253]
[1752091599193,3.2078,2756.9,2756.3,4.1303]
[1752091599696,3.2078,2756.9,2756.8,0.72529]
[1752091599892,3.93308,2756.9,2756.3,5.94381]
[1752091600193,0.72533,2756.7,2756.3,4.1303]
[1752091600395,3.2078,2756.9,2756.8,0.72529]
[1752091600598,0.72531,2756.8,2756.3,3.2078]
[1752091600796,0.72531,2756.8,2756.6,0.72533]
[1752091601000,3.93309,2756.9,2756.7,0.72532]
[1752091601199,0.7253,2756.8,2756.7,0.72531]
[1752091601392,3.2078,2756.9,2756.5,0.72536]
[1752091601587,3.2078,2756.6,2756.1,3.8353]
[1752091601791,3.2078,2756.6,2755.4,4.1303]
[1752091601792,3.2078,2756.3,2755.4,4.1303]
[1752091601997,0.72553,2755.9,2755.4,5.02192]
[1752091602196,0.72544,2756.3,2756.2,0.72544]
[1752091602397,0.72544,2756.3,2755.5,2.73655]
[1752091602398,0.72551,2756.0,2755.9,0.72552]
[1752091602600,0.72554,2755.9,2755.8,0.72555]
[1752091602795,5.02147,2756.2,2755.4,3.2078]
[1752091603004,1.30466029,2756.1,2755.4,3.2078]
[1752091603194,0.72563,2755.6,2755.5,0.72562]
[1752091603501,0.7256,2755.7,2755.6,0.72559]
[1752091603799,0.72559,2755.7,2755.6,0.72559]
[1752091603992,3.2078,2755.9,2755.8,0.72556]
[1752091604192,4.51238576,2755.9,2755.8,0.72556]
[1752091604398,5.23791576,2755.9,2755.8,0.72556]
[1752091604604,4.51238576,2755.9,2755.8,0.72556]
[1752091605494,3.2078,2755.9,2755.8,0.72556]
[1752091605689,3.2078,2756.2,2756.1,0.72547]
[1752091605898,3.2078,2756.2,2755.8,0.9225]
[1752091605899,5.0212,2756.6,2755.8,1.8139]
[1752091606099,0.72542,2756.4,2756.3,0.7254]
[1752091606298,2.02958541,2756.4,2756.3,0.7254]
[1752091606699,1.30416541,2756.4,2755.7,5.02172]
[1752091606898,1.30416541,2756.3,2756.2,0.72544]
[1752091607192,1.30416541,2756.3,2755.9,1.81377]
[1752091607193,0.72538,2756.5,2756.4,0.72537]
[1752091607402,0.72538,2756.5,2756.4,0.7254]
[1752091607403,0.72539,2756.5,2756.4,0.7254]
[1752091607597,0.72542,2756.4,2756.3,0.7254]
[1752091607791,0.72538,2756.5,2756.4,0.72537]
[1752091608599,3.2078,2756.6,2756.5,0.72537]
[1752091608902,0.72539,2756.5,2756.4,0.72538]
[1752091609303,0.72536,2756.6,2756.5,0.72536]
[1752091609698,56.20909,2756.9,2756.8,0.72529]
[1752091609900,55.4838,2756.9,2756.8,0.72529]
[1752091610496,0.7254,2756.5,2756.1,1.8137]
[1752091610698,0.7254,2756.5,2756.4,0.72538]
[1752091610899,0.7254,2756.5,2756.3,0.72541]
[1752091611102,0.7254,2756.5,2756.0,4.0627]
[1752091611103,1.81333,2756.7,2756.2,0.72544]
[1752091611298,0.72546,2756.2,2756.1,0.72548]
[1752091611502,0.72548,2756.1,2756.0,4.0627]
[1752091611804,3.2078,2756.3,2755.7,3.2078]
[1752091612003,0.72561,2755.6,2755.5,0.72563]
[1752091612202,0.72561,2755.6,2755.5,5.15553]
[1752091612506,0.72561,2755.6,2755.5,5.15552]
[1752091612800,0.72561,2755.6,2755.5,4.4299]
[1752091613301,7.90422093,2756.0,2755.5,4.4299]
[1752091613497,0.72558,2755.7,2755.6,0.72558]
[1752091613704,0.72561,2755.7,2755.6,0.72559]
[1752091613901,3.2078,2756.0,2755.5,4.4299]
[1752091613902,2.88263093,2755.9,2755.5,4.4299]
[1752091614098,0.72561,2755.6,2755.5,5.15551]
[1752091614298,0.72558,2755.8,2755.5,5.3524]
[1752091614502,0.72557,2755.8,2755.7,0.72557]
[1752091614696,0.72561,2755.7,2755.6,0.72559]
[1752091615508,0.72557,2755.8,2755.7,0.72556]
[1752091616008,3.2078,2756.0,2755.6,0.72559]
[1752091616009,0.72561,2755.7,2755.6,0.72559]
[1752091616504,0.72561,2755.6,2755.5,5.15553]
[1752091617006,0.72561,2755.6,2755.1,4.1303]
[1752091617201,0.72568,2755.4,2755.3,0.72567]
[1752091617397,0.72565,2755.5,2755.4,0.72565]
[1752091617706,0.72581,2754.9,2754.8,0.7258]
[1752091617902,0.72585,2754.7,2754.6,4.80084]
[1752091618104,0.72585,2754.7,2754.6,4.075]
[1752091618606,0.72585,2754.7,2754.6,4.80087]
[1752091618804,0.72583,2754.9,2754.8,0.72579]
[1752091619004,0.72584,2754.8,2754.7,0.72582]
[1752091619206,0.72582,2754.9,2754.8,0.72581]
[1752091619706,0.72584,2754.8,2754.7,0.72583]
[1752091620008,1.81431,2755.2,2754.6,4.075]
[1752091620009,0.72581,2754.9,2754.8,0.7258]
[1752091620204,0.72589,2754.6,2754.5,0.72587]
[1752091620408,3.2078,2754.6,2754.5,0.7259]
[1752091620614,0.72578,2755.0,2754.9,0.72578]
[1752091620902,0.72578,2755.0,2754.3,1.81487]
[1752091620903,0.72591,2754.5,2754.4,0.72591]
[1752091621108,3.2078,2754.8,2754.7,0.0054407]
[1752091621309,6.81625093,2754.8,2754.7,0.0054407]
[1752091621511,12.5168,2754.8,2753.4,8.0303]
[1752091621812,0.72614,2753.6,2753.5,4.2219]
[1752091622310,0.72614,2753.6,2753.5,4.94806]
[1752091622511,0.72612,2753.7,2753.6,0.72612]
[1752091622707,3.2078,2754.0,2753.9,0.72606]
[1752091623111,3.2078,2754.0,2753.9,1.64856]
[1752091623505,4.309,2754.8,2754.1,0.72599]
[1752091623506,3.2078,2754.4,2754.1,0.72599]
[1752091623814,0.72599,2754.2,2753.8,4.2219]
[1752091624108,6.09043093,2753.9,2753.4,3.9]
[1752091624310,6.09043093,2753.9,2753.6,0.02597786]
[1752091624510,0.72611,2753.7,2753.6,0.02597786]
[1752091624715,3.2078,2753.9,2753.8,0.72608]
[1752091624908,3.2078,2754.2,2753.8,0.9225]
[1752091625210,0.72607,2753.9,2753.8,0.72607]
[1752091625414,0.72613,2753.7,2753.6,0.72613]
[1752091625616,2.88263093,2753.7,2753.3,0.7262]
[1752091625812,3.2078,2753.6,2753.0,3.2078]
[1752091626113,0.72626,2753.2,2753.1,0.72626]
[1752091626312,3.2078,2753.6,2752.9,4.2331]
[1752091626615,0.72625,2753.2,2753.1,0.72626]
[1752091626805,0.72625,2753.2,2752.9,4.2331]
[1752091626806,0.72628,2753.1,2753.0,0.72628]
[1752091627005,7.90603093,2753.3,2752.8,0.72633]
[1752091627315,0.72632,2752.9,2752.8,0.72633]
[1752091627815,6.09043093,2752.9,2752.1,3.2078]
[1752091628015,3.2078,2752.6,2752.4,4.3868]
[1752091628316,3.2078,2752.6,2751.5,5.9754]
[1752091628317,0.72653,2752.1,2751.5,5.9754]
[1752091628516,0.72652,2752.2,2751.5,5.9754]
[1752091628714,0.72653,2752.1,2751.6,4.3868]
[1752091628911,3.2078,2752.4,2751.7,1.81655]
[1752091629110,3.2078,2752.4,2751.6,6.20341]
[1752091629313,0.72644,2752.5,2751.8,1.8165]
[1752091629619,3.2078,2752.7,2752.6,0.7264]
[1752091629812,3.2078,2753.0,2752.9,0.72632]
[1752091630214,0.9211,2753.5,2752.9,0.72632]
[1752091630414,3.2132407,2753.6,2753.1,1.81568]
[1752091630713,3.2132407,2753.6,2753.5,0.72616]
[1752091631111,3.2132407,2753.6,2752.6,3.2078]
[1752091631316,0.72629,2753.1,2752.9,0.72631]
[1752091631516,0.72629,2753.0,2752.8,0.72634]
[1752091631716,0.72635,2752.8,2752.7,4.78186]
[1752091631917,0.72635,2752.8,2752.7,4.0555]
[1752091632317,3.2078,2753.3,2752.7,5.0064]
[1752091632522,0.72621,2753.4,2753.2,0.72622]
[1752091632820,3.2132407,2753.6,2752.8,1.81588]